[Event "Masters Tournament (MTO)"]
[Site "Biel, Switzerland"]
[Date "2026.07.23"]
[Round "10.6"]
[White "Alexakis, Dimitris"]
[Black "Baenziger, Fabian"]
[Result "1-0"]
[TimeControl "100+30+30sec/move"]
[WhiteTitle "-"]
[BlackTitle "-"]
[WhiteFideId "4277023"]
[BlackFideId "1330110"]
[WhiteElo "2525"]
[BlackElo "2435"]

1. e4 {[%clk 01:39:06]} {[%emt 00:01:53]} c5 {[%clk 01:40:46]} {[%emt
00:00:14]} 2. Nf3 {[%clk 01:39:19]} {[%emt 00:00:18]} d6 {[%clk 01:40:53]}
{[%emt 00:00:23]} 3. d4 {[%clk 01:36:50]} {[%emt 00:02:58]} cxd4 {[%clk
01:41:17]} {[%emt 00:00:07]} 4. Nxd4 {[%clk 01:37:13]} {[%emt 00:00:06]} Nf6
{[%clk 01:41:40]} {[%emt 00:00:06]} 5. Nc3 {[%clk 01:37:35]} {[%emt 00:00:09]}
a6 {[%clk 01:41:37]} {[%emt 00:00:34]} 6. h3 {[%clk 01:36:50]} {[%emt
00:01:15]} e5 {[%clk 01:41:01]} {[%emt 00:01:05]} 7. Nde2 {[%clk 01:36:54]}
{[%emt 00:00:26]} h5 {[%clk 01:40:36]} {[%emt 00:00:54]} 8. Be3 {[%clk
01:23:18]} {[%emt 00:14:07]} Be6 {[%clk 01:33:56]} {[%emt 00:07:11]} 9. Nd5
{[%clk 01:20:52]} {[%emt 00:02:56]} Nbd7 {[%clk 01:27:49]} {[%emt 00:06:37]} 10.
Nec3 {[%clk 01:20:17]} {[%emt 00:01:05]} Rc8 {[%clk 01:25:10]} {[%emt
00:03:09]} 11. Be2 {[%clk 01:12:08]} {[%emt 00:08:39]} Bxd5 {[%clk 01:09:49]}
{[%emt 00:15:51]} 12. Nxd5 {[%clk 01:03:51]} {[%emt 00:08:46]} Nxe4 {[%clk
01:08:53]} {[%emt 00:01:27]} 13. Bf3 {[%clk 01:02:07]} {[%emt 00:02:14]} Ng5
{[%clk 01:04:30]} {[%emt 00:04:52]} 14. Bxh5 {[%clk 01:01:59]} {[%emt
00:00:38]} g6 {[%clk 01:03:17]} {[%emt 00:01:44]} 15. Be2 {[%clk 00:59:53]}
{[%emt 00:02:36]} Bg7 {[%clk 00:58:33]} {[%emt 00:05:13]} 16. c3 {[%clk
00:48:02]} {[%emt 00:12:20]} Ne6 {[%clk 00:54:21]} {[%emt 00:04:42]} 17. Qd2
{[%clk 00:45:54]} {[%emt 00:02:38]} f5 {[%clk 00:49:34]} {[%emt 00:05:16]} 18.
O-O-O {[%clk 00:33:54]} {[%emt 00:12:30]} f4 {[%clk 00:39:25]} {[%emt
00:10:39]} 19. Qc2 {[%clk 00:24:51]} {[%emt 00:09:33]} Kf7 {[%clk 00:33:29]}
{[%emt 00:06:26]} 20. Bg4 {[%clk 00:21:41]} {[%emt 00:03:40]} fxe3 {[%clk
00:25:45]} {[%emt 00:08:14]} 21. Bxe6+ {[%clk 00:17:57]} {[%emt 00:04:14]} Kxe6
{[%clk 00:26:11]} {[%emt 00:00:04]} 22. Qxg6+ {[%clk 00:18:11]} {[%emt
00:00:16]} Nf6 {[%clk 00:21:24]} {[%emt 00:05:18]} 23. Qxg7 {[%clk 00:11:53]}
{[%emt 00:06:48]} Nxd5 {[%clk 00:21:41]} {[%emt 00:00:13]} 24. Qg4+ {[%clk
00:12:10]} {[%emt 00:00:13]} Ke7 {[%clk 00:22:06]} {[%emt 00:00:05]} 25. Rxd5
{[%clk 00:12:17]} {[%emt 00:00:23]} Qg8 {[%clk 00:22:20]} {[%emt 00:00:17]} 26.
Qe4 {[%clk 00:11:06]} {[%emt 00:01:40]} exf2 {[%clk 00:19:06]} {[%emt
00:03:44]} 27. Rf1 {[%clk 00:09:33]} {[%emt 00:02:03]} Rf8 {[%clk 00:02:54]}
{[%emt 00:16:42]} 28. Rd2 {[%clk 00:08:59]} {[%emt 00:01:04]} Qxa2 {[%clk
00:03:20]} {[%emt 00:00:04]} 29. Qxb7+ {[%clk 00:09:00]} {[%emt 00:00:28]} Ke6
{[%clk 00:03:40]} {[%emt 00:00:09]} 30. Rxd6+ {[%clk 00:07:53]} {[%emt
00:01:37]} Kxd6 {[%clk 00:03:51]} {[%emt 00:00:20]} 31. Rd1+ {[%clk 00:08:17]}
{[%emt 00:00:05]} Kc5 {[%clk 00:02:42]} {[%emt 00:01:39]} 32. Qb4+ {[%clk
00:08:29]} {[%emt 00:00:18]} 1-0

[Event "Masters Tournament (MTO)"]
[Site "Biel, Switzerland"]
[Date "2026.07.23"]
[Round "10.7"]
[White "Savitha, Shri B"]
[Black "Dong, Hongfu"]
[Result "1-0"]
[TimeControl "100+30+30sec/move"]
[WhiteTitle "-"]
[BlackTitle "-"]
[WhiteFideId "35061887"]
[BlackFideId "8626960"]
[WhiteElo "2368"]
[BlackElo "2353"]

1. e4 {[%clk 01:39:54]} {[%emt 00:01:03]} c5 {[%clk 01:40:36]} {[%emt
00:00:24]} 2. Nf3 {[%clk 01:40:17]} {[%emt 00:00:07]} e6 {[%clk 01:40:57]}
{[%emt 00:00:08]} 3. d4 {[%clk 01:40:42]} {[%emt 00:00:06]} cxd4 {[%clk
01:41:22]} {[%emt 00:00:05]} 4. Nxd4 {[%clk 01:41:08]} {[%emt 00:00:05]} a6
{[%clk 01:41:44]} {[%emt 00:00:08]} 5. Bd3 {[%clk 01:41:32]} {[%emt 00:00:06]}
Bc5 {[%clk 01:42:09]} {[%emt 00:00:05]} 6. Nb3 {[%clk 01:41:56]} {[%emt
00:00:05]} Ba7 {[%clk 01:42:33]} {[%emt 00:00:06]} 7. Bf4 {[%clk 01:41:45]}
{[%emt 00:00:40]} Nc6 {[%clk 01:39:02]} {[%emt 00:04:02]} 8. Bd6 {[%clk
01:42:03]} {[%emt 00:00:12]} Bb8 {[%clk 01:34:48]} {[%emt 00:04:44]} 9. Bxb8
{[%clk 01:42:21]} {[%emt 00:00:13]} Rxb8 {[%clk 01:35:10]} {[%emt 00:00:08]} 10.
Qg4 {[%clk 01:42:45]} {[%emt 00:00:05]} Qf6 {[%clk 01:19:25]} {[%emt 00:16:16]}
11. Nc3 {[%clk 01:43:06]} {[%emt 00:00:08]} Nge7 {[%clk 01:11:16]} {[%emt
00:08:39]} 12. f4 {[%clk 01:39:02]} {[%emt 00:04:34]} e5 {[%clk 01:11:02]}
{[%emt 00:00:45]} 13. O-O {[%clk 01:08:47]} {[%emt 00:30:45]} d6 {[%clk
00:47:16]} {[%emt 00:24:16]} 14. Qg3 {[%clk 01:03:52]} {[%emt 00:05:24]} Qg6
{[%clk 00:43:21]} {[%emt 00:04:25]} 15. Qh4 {[%clk 01:01:41]} {[%emt 00:02:41]}
Qg4 {[%clk 00:43:01]} {[%emt 00:00:50]} 16. Qxg4 {[%clk 01:00:24]} {[%emt
00:01:47]} Bxg4 {[%clk 00:43:25]} {[%emt 00:00:06]} 17. f5 {[%clk 01:00:47]}
{[%emt 00:00:08]} f6 {[%clk 00:43:30]} {[%emt 00:00:24]} 18. Bc4 {[%clk
00:54:41]} {[%emt 00:06:36]} b5 {[%clk 00:31:37]} {[%emt 00:12:23]} 19. Be6
{[%clk 00:53:56]} {[%emt 00:01:15]} Nd8 {[%clk 00:29:55]} {[%emt 00:02:11]} 20.
Bd5 {[%clk 00:54:19]} {[%emt 00:00:07]} Rc8 {[%clk 00:21:08]} {[%emt 00:09:18]}
21. Rf2 {[%clk 00:48:20]} {[%emt 00:06:28]} b4 {[%clk 00:17:19]} {[%emt
00:04:20]} 22. Na4 {[%clk 00:45:18]} {[%emt 00:03:33]} Nxd5 {[%clk 00:17:19]}
{[%emt 00:00:29]} 23. exd5 {[%clk 00:45:46]} {[%emt 00:00:02]} Rb8 {[%clk
00:17:26]} {[%emt 00:00:23]} 24. a3 {[%clk 00:45:32]} {[%emt 00:00:45]} O-O
{[%clk 00:17:38]} {[%emt 00:00:17]} 25. axb4 {[%clk 00:44:47]} {[%emt
00:01:14]} Rxb4 {[%clk 00:18:04]} {[%emt 00:00:05]} 26. Nc3 {[%clk 00:42:03]}
{[%emt 00:03:15]} Rb6 {[%clk 00:17:07]} {[%emt 00:01:26]} 27. Na5 {[%clk
00:38:59]} {[%emt 00:03:34]} Rb4 {[%clk 00:11:54]} {[%emt 00:05:43]} 28. b3
{[%clk 00:36:32]} {[%emt 00:02:56]} Rf4 {[%clk 00:10:49]} {[%emt 00:01:35]} 29.
Rxf4 {[%clk 00:25:38]} {[%emt 00:11:25]} exf4 {[%clk 00:11:19]} 30. Nc6 {[%clk
00:22:57]} {[%emt 00:03:11]} Re8 {[%clk 00:07:14]} {[%emt 00:04:35]} 31. Rxa6
{[%clk 00:19:52]} {[%emt 00:03:34]} Nb7 {[%clk 00:05:59]} {[%emt 00:01:45]} 32.
Nd4 {[%clk 00:19:20]} {[%emt 00:01:02]} Nc5 {[%clk 00:04:47]} {[%emt 00:01:43]}
33. Rxd6 {[%clk 00:15:55]} {[%emt 00:03:54]} Re3 {[%clk 00:05:03]} {[%emt
00:00:14]} 34. Rd8+ {[%clk 00:11:18]} {[%emt 00:05:07]} Kf7 {[%clk 00:05:32]}
{[%emt 00:00:01]} 35. Ncb5 {[%clk 00:10:11]} {[%emt 00:01:37]} g6 {[%clk
00:05:15]} {[%emt 00:00:47]} 36. Nd6+ {[%clk 00:09:14]} {[%emt 00:01:27]} Kg7
{[%clk 00:05:44]} {[%emt 00:00:01]} 37. h3 {[%clk 00:09:03]} {[%emt 00:00:41]}
Re1+ {[%clk 00:05:22]} {[%emt 00:00:52]} 38. Kf2 {[%clk 00:06:48]} {[%emt
00:02:45]} Rd1 {[%clk 00:05:44]} {[%emt 00:00:08]} 39. Ne6+ {[%clk 00:05:14]}
{[%emt 00:02:04]} Nxe6 {[%clk 00:06:07]} {[%emt 00:00:07]} 40. dxe6 {[%clk
00:04:13]} {[%emt 00:01:31]} Rd2+ {[%clk 00:06:30]} {[%emt 00:00:07]} 41. Kg1
{[%clk 00:04:30]} {[%emt 00:00:13]} Rd1+ {[%clk 00:06:56]} {[%emt 00:00:04]} 42.
Kh2 {[%clk 00:04:36]} {[%emt 00:00:24]} Bh5 {[%clk 00:06:54]} {[%emt 00:00:32]}
43. e7 {[%clk 00:04:52]} {[%emt 00:00:15]} 1-0

[Event "Masters Tournament (MTO)"]
[Site "Biel, Switzerland"]
[Date "2026.07.23"]
[Round "10.8"]
[White "Kukushkin, Ivan"]
[Black "Ganguly, Surya Shekhar"]
[Result "1/2-1/2"]
[TimeControl "100+30+30sec/move"]
[WhiteTitle "-"]
[BlackTitle "-"]
[WhiteFideId "11634103"]
[BlackFideId "5002150"]
[WhiteElo "2257"]
[BlackElo "2578"]

1. e4 {[%clk 01:38:34]} {[%emt 00:02:25]} c6 {[%clk 01:40:44]} {[%emt
00:00:17]} 2. d4 {[%clk 01:38:13]} {[%emt 00:00:51]} d5 {[%clk 01:41:07]}
{[%emt 00:00:06]} 3. e5 {[%clk 01:38:37]} {[%emt 00:00:07]} c5 {[%clk
01:41:14]} {[%emt 00:00:23]} 4. dxc5 {[%clk 01:38:33]} {[%emt 00:00:34]} e6
{[%clk 01:41:19]} {[%emt 00:00:24]} 5. Be3 {[%clk 01:36:15]} {[%emt 00:02:48]}
Nc6 {[%clk 01:39:14]} {[%emt 00:02:33]} 6. Nf3 {[%clk 01:34:22]} {[%emt
00:02:25]} Nh6 {[%clk 01:37:13]} {[%emt 00:02:31]} 7. c3 {[%clk 01:30:19]}
{[%emt 00:04:34]} Bd7 {[%clk 01:36:00]} {[%emt 00:01:43]} 8. Bd3 {[%clk
01:29:45]} {[%emt 00:01:05]} g6 {[%clk 01:25:33]} {[%emt 00:10:55]} 9. O-O
{[%clk 01:28:35]} {[%emt 00:01:40]} Qc7 {[%clk 01:20:36]} {[%emt 00:05:28]} 10.
Na3 {[%clk 01:26:34]} {[%emt 00:02:31]} a6 {[%clk 01:19:28]} {[%emt 00:01:38]}
11. Re1 {[%clk 01:26:24]} {[%emt 00:00:40]} Nf5 {[%clk 01:18:33]} {[%emt
00:01:23]} 12. Bd4 {[%clk 01:26:40]} {[%emt 00:00:16]} Nfxd4 {[%clk 01:17:06]}
{[%emt 00:01:57]} 13. cxd4 {[%clk 01:26:10]} {[%emt 00:01:00]} b6 {[%clk
01:17:30]} {[%emt 00:00:05]} 14. cxb6 {[%clk 01:21:21]} {[%emt 00:05:20]} Qxb6
{[%clk 01:17:51]} {[%emt 00:00:09]} 15. Nc2 {[%clk 01:21:24]} {[%emt 00:00:27]}
Qxb2 {[%clk 01:16:28]} {[%emt 00:01:53]} 16. Rb1 {[%clk 01:18:59]} {[%emt
00:02:55]} Qc3 {[%clk 01:01:08]} {[%emt 00:15:48]} 1/2-1/2

[Event "Masters Tournament (MTO)"]
[Site "Biel, Switzerland"]
[Date "2026.07.23"]
[Round "10.9"]
[White "Lu, Miaoyi"]
[Black "Matsumura, Cocoro"]
[Result "1-0"]
[TimeControl "100+30+30sec/move"]
[WhiteTitle "-"]
[BlackTitle "-"]
[WhiteFideId "8618020"]
[BlackFideId "36087114"]
[WhiteElo "2392"]
[BlackElo "2225"]

1. e4 {[%clk 01:40:58]} {[%emt 00:00:03]} c5 {[%clk 01:38:31]} {[%emt
00:02:28]} 2. Nf3 {[%clk 01:41:22]} {[%emt 00:00:07]} d6 {[%clk 01:38:57]}
{[%emt 00:00:04]} 3. d4 {[%clk 01:41:29]} {[%emt 00:00:23]} cxd4 {[%clk
01:39:22]} {[%emt 00:00:05]} 4. Nxd4 {[%clk 01:41:56]} {[%emt 00:00:03]} Nf6
{[%clk 01:39:45]} {[%emt 00:00:06]} 5. Nc3 {[%clk 01:42:22]} {[%emt 00:00:05]}
Nc6 {[%clk 01:40:11]} {[%emt 00:00:04]} 6. Bg5 {[%clk 01:39:06]} {[%emt
00:03:46]} Bd7 {[%clk 01:40:27]} {[%emt 00:00:14]} 7. Nxc6 {[%clk 01:38:08]}
{[%emt 00:01:28]} Bxc6 {[%clk 01:40:32]} {[%emt 00:00:24]} 8. Qe2 {[%clk
01:38:09]} {[%emt 00:00:29]} Qa5 {[%clk 01:38:59]} {[%emt 00:02:03]} 9. Bd2
{[%clk 01:36:50]} {[%emt 00:01:49]} Qc7 {[%clk 01:31:41]} {[%emt 00:07:48]} 10.
O-O-O {[%clk 01:18:57]} {[%emt 00:18:23]} h6 {[%clk 01:19:27]} {[%emt
00:12:45]} 11. Nb5 {[%clk 01:04:06]} {[%emt 00:15:21]} Qd7 {[%clk 00:46:05]}
{[%emt 00:33:51]} 12. e5 {[%clk 00:58:09]} {[%emt 00:06:27]} Ne4 {[%clk
00:41:54]} {[%emt 00:04:41]} 13. Be3 {[%clk 00:27:24]} {[%emt 00:31:15]} a6
{[%clk 00:36:50]} {[%emt 00:05:34]} 14. e6 {[%clk 00:27:32]} {[%emt 00:00:22]}
fxe6 {[%clk 00:35:49]} {[%emt 00:01:31]} 15. Qh5+ {[%clk 00:28:01]} {[%emt
00:00:02]} Kd8 {[%clk 00:36:11]} {[%emt 00:00:08]} 16. Bb6+ {[%clk 00:26:41]}
{[%emt 00:01:50]} Kc8 {[%clk 00:36:40]} 17. Nc7 {[%clk 00:26:28]} {[%emt
00:00:42]} Rb8 {[%clk 00:35:44]} {[%emt 00:01:26]} 18. Bc4 {[%clk 00:22:48]}
{[%emt 00:04:10]} Nf6 {[%clk 00:32:42]} {[%emt 00:03:31]} 19. Qf7 {[%clk
00:14:26]} {[%emt 00:08:52]} d5 {[%clk 00:30:11]} {[%emt 00:03:03]} 20. Nxe6
{[%clk 00:11:56]} {[%emt 00:02:59]} Qd6 {[%clk 00:20:51]} {[%emt 00:09:50]} 21.
Nxf8 {[%clk 00:09:49]} {[%emt 00:02:37]} e5 {[%clk 00:15:28]} {[%emt 00:05:53]}
22. Ng6 {[%clk 00:09:20]} {[%emt 00:00:59]} Be8 {[%clk 00:14:03]} {[%emt
00:01:55]} 23. Qxg7 {[%clk 00:09:11]} {[%emt 00:00:39]} Rh7 {[%clk 00:12:27]}
{[%emt 00:02:05]} 24. Qf8 {[%clk 00:04:52]} {[%emt 00:04:50]} Qxb6 {[%clk
00:12:11]} {[%emt 00:00:46]} 25. Ne7+ {[%clk 00:05:02]} {[%emt 00:00:20]} Rxe7
{[%clk 00:06:25]} {[%emt 00:06:16]} 26. Qxe7 {[%clk 00:05:29]} {[%emt
00:00:03]} Qc6 {[%clk 00:05:57]} {[%emt 00:00:58]} 27. Qxe5 {[%clk 00:03:27]}
{[%emt 00:02:33]} Qxc4 {[%clk 00:06:14]} {[%emt 00:00:12]} 28. Qxf6 {[%clk
00:03:25]} {[%emt 00:00:31]} Qxa2 {[%clk 00:06:35]} {[%emt 00:00:09]} 29. b3
{[%clk 00:02:54]} {[%emt 00:01:02]} Bc6 {[%clk 00:05:46]} {[%emt 00:01:19]} 30.
Rhe1 {[%clk 00:03:21]} {[%emt 00:00:03]} 1-0

[Event "Masters Tournament (MTO)"]
[Site "Biel, Switzerland"]
[Date "2026.07.23"]
[Round "10.10"]
[White "Georgescu, Lena"]
[Black "Haimovich, Tal"]
[Result "1/2-1/2"]
[TimeControl "100+30+30sec/move"]
[WhiteTitle "-"]
[BlackTitle "-"]
[WhiteFideId "1331973"]
[BlackFideId "2801698"]
[WhiteElo "2253"]
[BlackElo "2310"]

1. e4 {[%clk 01:40:56]} {[%emt 00:00:01]} d5 {[%clk 01:40:22]} {[%emt
00:00:39]} 2. exd5 {[%clk 01:41:20]} {[%emt 00:00:06]} Qxd5 {[%clk 01:40:46]}
{[%emt 00:00:06]} 3. Nc3 {[%clk 01:41:31]} {[%emt 00:00:20]} Qd8 {[%clk
01:41:06]} {[%emt 00:00:10]} 4. d4 {[%clk 01:41:27]} {[%emt 00:00:33]} Nf6
{[%clk 01:41:29]} {[%emt 00:00:07]} 5. Nf3 {[%clk 01:41:10]} {[%emt 00:00:47]}
e6 {[%clk 01:41:51]} {[%emt 00:00:09]} 6. Bc4 {[%clk 01:37:36]} {[%emt
00:04:03]} a6 {[%clk 01:42:11]} {[%emt 00:00:10]} 7. a4 {[%clk 01:35:18]}
{[%emt 00:02:49]} Nc6 {[%clk 01:42:34]} {[%emt 00:00:06]} 8. O-O {[%clk
01:34:32]} {[%emt 00:01:14]} Be7 {[%clk 01:43:00]} {[%emt 00:00:05]} 9. Re1
{[%clk 01:23:14]} {[%emt 00:11:49]} O-O {[%clk 01:43:05]} {[%emt 00:00:25]} 10.
h3 {[%clk 01:15:56]} {[%emt 00:07:47]} Nb4 {[%clk 01:38:43]} {[%emt 00:04:52]}
11. Ne2 {[%clk 01:11:04]} {[%emt 00:05:22]} b6 {[%clk 01:36:57]} {[%emt
00:02:16]} 12. c3 {[%clk 01:10:22]} {[%emt 00:01:13]} Nbd5 {[%clk 01:36:58]}
{[%emt 00:00:29]} 13. Ng3 {[%clk 01:05:59]} {[%emt 00:04:52]} Bb7 {[%clk
01:33:57]} {[%emt 00:03:32]} 14. Qe2 {[%clk 01:02:46]} {[%emt 00:03:42]} Re8
{[%clk 01:27:32]} {[%emt 00:06:55]} 15. Ne5 {[%clk 01:01:46]} {[%emt 00:01:30]}
Bf8 {[%clk 01:21:40]} {[%emt 00:06:23]} 16. Bd3 {[%clk 00:58:48]} {[%emt
00:03:28]} Qc8 {[%clk 01:07:33]} {[%emt 00:14:37]} 17. Nh5 {[%clk 00:55:27]}
{[%emt 00:03:51]} g6 {[%clk 01:06:47]} {[%emt 00:01:15]} 18. Nxf6+ {[%clk
00:48:57]} {[%emt 00:07:01]} Nxf6 {[%clk 01:07:02]} {[%emt 00:00:15]} 19. Bg5
{[%clk 00:46:00]} {[%emt 00:03:26]} Bg7 {[%clk 01:07:15]} {[%emt 00:00:18]} 20.
Qd2 {[%clk 00:44:42]} {[%emt 00:01:48]} Rf8 {[%clk 01:03:44]} {[%emt 00:04:02]}
21. Rad1 {[%clk 00:34:41]} {[%emt 00:10:30]} Qe8 {[%clk 00:52:07]} {[%emt
00:12:07]} 22. Bc2 {[%clk 00:33:04]} {[%emt 00:02:07]} b5 {[%clk 00:42:52]}
{[%emt 00:09:44]} 23. a5 {[%clk 00:27:01]} {[%emt 00:06:34]} Kh8 {[%clk
00:38:43]} {[%emt 00:04:39]} 24. h4 {[%clk 00:25:13]} {[%emt 00:02:18]} Nd5
{[%clk 00:27:38]} {[%emt 00:11:35]} 25. Nd3 {[%clk 00:21:19]} {[%emt 00:04:24]}
Qc6 {[%clk 00:25:44]} {[%emt 00:02:24]} 26. f3 {[%clk 00:17:13]} {[%emt
00:04:36]} Rae8 {[%clk 00:25:08]} {[%emt 00:01:05]} 27. h5 {[%clk 00:13:46]}
{[%emt 00:03:58]} Kg8 {[%clk 00:21:02]} {[%emt 00:04:37]} 28. hxg6 {[%clk
00:12:32]} {[%emt 00:01:43]} fxg6 {[%clk 00:17:55]} {[%emt 00:03:37]} 29. Re2
{[%clk 00:10:53]} {[%emt 00:02:09]} Qd6 {[%clk 00:16:11]} {[%emt 00:02:14]} 30.
Rde1 {[%clk 00:08:51]} {[%emt 00:02:31]} Bc8 {[%clk 00:14:11]} {[%emt
00:02:31]} 31. Bb3 {[%clk 00:09:04]} {[%emt 00:00:17]} Rf5 {[%clk 00:14:05]}
{[%emt 00:00:35]} 32. Nc5 {[%clk 00:07:40]} {[%emt 00:01:55]} c6 {[%clk
00:13:10]} {[%emt 00:01:25]} 33. Bxd5 {[%clk 00:05:14]} {[%emt 00:02:56]} Qxd5
{[%clk 00:11:13]} {[%emt 00:02:27]} 34. Bh6 {[%clk 00:04:39]} {[%emt 00:01:05]}
Bf6 {[%clk 00:08:24]} {[%emt 00:03:18]} 35. Nd3 {[%clk 00:03:22]} {[%emt
00:01:47]} Qd8 {[%clk 00:03:27]} {[%emt 00:05:26]} 36. Bf4 {[%clk 00:03:05]}
{[%emt 00:00:47]} Qxa5 {[%clk 00:03:07]} {[%emt 00:00:51]} 37. b4 {[%clk
00:02:30]} {[%emt 00:01:06]} Qd8 {[%clk 00:03:29]} {[%emt 00:00:07]} 38. Be5
{[%clk 00:02:39]} {[%emt 00:00:22]} Bg5 {[%clk 00:02:54]} {[%emt 00:01:04]} 39.
f4 {[%clk 00:02:10]} {[%emt 00:00:58]} Be7 {[%clk 00:02:25]} {[%emt 00:00:59]}
40. g4 {[%clk 00:01:44]} {[%emt 00:00:56]} Rf7 {[%clk 00:02:47]} {[%emt
00:00:07]} 41. Nc5 {[%clk 00:26:14]} {[%emt 00:06:02]} Qd5 {[%clk 00:20:50]}
{[%emt 00:12:27]} 42. g5 {[%clk 00:21:31]} {[%emt 00:05:12]} a5 {[%clk
00:17:58]} {[%emt 00:03:23]} 43. Rh2 {[%clk 00:19:49]} {[%emt 00:02:11]} Bxc5
{[%clk 00:14:41]} {[%emt 00:03:48]} 44. bxc5 {[%clk 00:19:06]} {[%emt
00:01:13]} Qf3 {[%clk 00:14:46]} {[%emt 00:00:25]} 45. Re3 {[%clk 00:14:39]}
{[%emt 00:04:57]} Qg4+ {[%clk 00:14:58]} {[%emt 00:00:18]} 46. Kh1 {[%clk
00:14:11]} {[%emt 00:00:58]} Rxf4 {[%clk 00:11:30]} {[%emt 00:03:58]} 47. Bxf4
{[%clk 00:14:22]} {[%emt 00:00:18]} Qxf4 {[%clk 00:11:57]} {[%emt 00:00:03]} 48.
Qf2 {[%clk 00:11:51]} {[%emt 00:03:01]} Qxf2 {[%clk 00:11:06]} {[%emt
00:01:21]} 49. Rxf2 {[%clk 00:12:19]} {[%emt 00:00:03]} a4 {[%clk 00:11:28]}
{[%emt 00:00:08]} 50. Kg2 {[%clk 00:05:43]} {[%emt 00:07:06]} Bd7 {[%clk
00:07:59]} {[%emt 00:03:59]} 51. Kg3 {[%clk 00:06:00]} {[%emt 00:00:13]} Ra8
{[%clk 00:08:02]} {[%emt 00:00:27]} 52. Kf4 {[%clk 00:04:39]} {[%emt 00:01:50]}
Rf8+ {[%clk 00:04:27]} {[%emt 00:04:05]} 53. Kg3 {[%clk 00:05:06]} {[%emt
00:00:03]} Ra8 {[%clk 00:03:04]} {[%emt 00:01:53]} 54. Ree2 {[%emt 00:03:49]}
e5 {[%emt 00:00:01]} 55. Rxe5 {[%emt 00:00:11]} a3 56. Ree2 {[%emt 00:00:35]}
1/2-1/2